[Event "NJSK 2022 Meisjes A&B"]
[Site "Almelo, Netherlands"]
[Date "2022.05.06"]
[Round "6.6"]
[White "Mensing, Luana"]
[Black "Bogouslavskii, Veronique"]
[Result "0-1"]
[TimeControl "90min/40moves + 30min + 30sec/move"]
[WhiteElo "1604"]
[BlackElo "1618"]

1. e4 {[%clk 01:30:58]} {[%emt 00:00:02]} e5 {[%clk 01:30:53]} {[%emt
00:00:09]} 2. Nf3 {[%clk 01:31:20]} {[%emt 00:00:09]} Nc6 {[%clk 01:31:11]}
{[%emt 00:00:10]} 3. Bc4 {[%clk 01:31:39]} {[%emt 00:00:13]} f5 {[%clk
01:31:26]} {[%emt 00:00:13]} 4. d3 {[%clk 01:31:09]} {[%emt 00:01:00]} Bc5
{[%clk 01:31:42]} {[%emt 00:00:13]} 5. Ng5 {[%clk 01:29:07]} {[%emt 00:02:32]}
f4 {[%clk 01:31:32]} {[%emt 00:00:40]} 6. Nf7 {[%clk 01:22:55]} {[%emt
00:06:43]} Qh4 {[%clk 01:30:42]} {[%emt 00:01:19]} 7. O-O {[%clk 01:18:11]}
{[%emt 00:05:14]} Nf6 {[%clk 01:30:04]} {[%emt 00:01:08]} 8. Nd2 {[%clk
00:50:18]} {[%emt 00:28:24]} Ng4 {[%clk 01:03:12]} {[%emt 00:27:22]} 9. Nf3
{[%clk 00:49:48]} {[%emt 00:01:01]} Bxf2+ {[%clk 01:01:48]} {[%emt 00:01:53]}
10. Kh1 {[%clk 00:41:06]} {[%emt 00:09:12]} Qh5 {[%clk 00:57:01]} {[%emt
00:05:17]} 11. Nxh8 {[%clk 00:38:36]} {[%emt 00:03:01]} d5 {[%clk 00:50:03]}
{[%emt 00:07:27]} 12. Bxd5 {[%clk 00:38:31]} {[%emt 00:00:35]} Kf8 {[%clk
00:47:25]} {[%emt 00:03:08]} 13. b3 {[%clk 00:26:29]} {[%emt 00:12:33]} g6
{[%clk 00:42:34]} {[%emt 00:05:20]} 14. Ba3+ {[%clk 00:25:10]} {[%emt
00:01:49]} Kg7 {[%clk 00:41:33]} {[%emt 00:01:30]} 15. Nf7 {[%clk 00:24:52]}
{[%emt 00:00:49]} Nd4 {[%clk 00:37:51]} {[%emt 00:04:13]} 16. N7xe5 {[%clk
00:16:22]} {[%emt 00:09:00]} Ne2 {[%clk 00:33:25]} {[%emt 00:04:54]} 17. Qxe2
{[%clk 00:15:35]} {[%emt 00:01:19]} Nxh2 {[%clk 00:33:14]} {[%emt 00:00:41]} 18.
Ng1 {[%clk 00:12:58]} {[%emt 00:03:07]} Nf3+ {[%clk 00:21:57]} {[%emt
00:11:46]} 19. Nh3 {[%clk 00:13:15]} {[%emt 00:00:13]} Bxh3 {[%clk 00:22:21]}
{[%emt 00:00:06]} 20. Nxf3 {[%clk 00:04:43]} {[%emt 00:09:03]} Bg4+ {[%clk
00:21:15]} {[%emt 00:01:36]} 21. Nh2 {[%clk 00:05:08]} {[%emt 00:00:04]} Bg3
{[%clk 00:21:14]} {[%emt 00:00:31]} 22. Bb2+ {[%clk 00:05:18]} {[%emt
00:00:21]} Kh6 {[%clk 00:21:01]} {[%emt 00:00:42]} 23. Qxg4 {[%clk 00:03:42]}
{[%emt 00:02:05]} Qxh2# {[%clk 00:21:28]} {[%emt 00:00:03]} 0-1

[Event "NJSK 2022 Meisjes A&B"]
[Site "Almelo, Netherlands"]
[Date "2022.05.06"]
[Round "6.7"]
[White "Wortman, Manixia"]
[Black "Ganeshram, Nirupa"]
[Result "1-0"]
[TimeControl "90min/40moves + 30min + 30sec/move"]
[WhiteElo "1432"]
[BlackElo "1546"]

1. e4 {[%clk 01:30:58]} {[%emt 00:00:01]} c5 {[%clk 01:30:53]} {[%emt
00:00:08]} 2. c3 {[%clk 01:31:21]} {[%emt 00:00:07]} d5 {[%clk 01:31:08]}
{[%emt 00:00:14]} 3. exd5 {[%clk 01:31:44]} {[%emt 00:00:06]} Qxd5 {[%clk
01:31:26]} {[%emt 00:00:13]} 4. Nf3 {[%clk 01:32:09]} {[%emt 00:00:05]} Nc6
{[%clk 01:31:33]} {[%emt 00:00:23]} 5. Na3 {[%clk 01:32:23]} {[%emt 00:00:16]}
Nf6 {[%clk 01:31:24]} {[%emt 00:00:39]} 6. Nc2 {[%clk 01:32:03]} {[%emt
00:00:49]} e6 {[%clk 01:30:10]} {[%emt 00:01:44]} 7. Be2 {[%clk 01:30:23]}
{[%emt 00:02:10]} Be7 {[%clk 01:28:37]} {[%emt 00:02:03]} 8. O-O {[%clk
01:30:42]} {[%emt 00:00:11]} O-O {[%clk 01:28:05]} {[%emt 00:01:02]} 9. d4
{[%clk 01:30:54]} {[%emt 00:00:18]} cxd4 {[%clk 01:26:50]} {[%emt 00:01:45]} 10.
Ncxd4 {[%clk 01:31:02]} {[%emt 00:00:22]} Nxd4 {[%clk 01:25:59]} {[%emt
00:01:20]} 11. Qxd4 {[%clk 01:30:25]} {[%emt 00:01:07]} Bc5 {[%clk 01:13:36]}
{[%emt 00:12:53]} 12. Qd3 {[%clk 01:25:15]} {[%emt 00:05:40]} Rd8 {[%clk
01:09:02]} {[%emt 00:05:05]} 13. Rd1 {[%clk 01:24:30]} {[%emt 00:01:15]} Ng4
{[%clk 00:59:08]} {[%emt 00:10:24]} 14. Nd4 {[%clk 01:15:27]} {[%emt 00:09:33]}
e5 {[%clk 00:53:07]} {[%emt 00:06:30]} 15. Nf3 {[%clk 00:55:48]} {[%emt
00:20:09]} Qxd3 {[%clk 00:48:12]} {[%emt 00:05:26]} 16. Rxd3 {[%clk 00:55:00]}
{[%emt 00:01:18]} Rxd3 {[%clk 00:48:17]} {[%emt 00:00:25]} 17. Bxd3 {[%clk
00:55:12]} {[%emt 00:00:18]} Nxf2 {[%clk 00:46:56]} {[%emt 00:01:52]} 18. Bc4
{[%clk 00:53:57]} {[%emt 00:01:45]} e4 {[%clk 00:43:37]} {[%emt 00:03:48]} 19.
Ng5 {[%clk 00:52:26]} {[%emt 00:02:01]} Nh3+ {[%clk 00:43:21]} {[%emt
00:00:46]} 20. Kf1 {[%clk 00:52:35]} {[%emt 00:00:22]} Nxg5 {[%clk 00:43:13]}
{[%emt 00:00:37]} 21. Bxg5 {[%clk 00:52:54]} {[%emt 00:00:10]} h6 {[%clk
00:37:14]} {[%emt 00:06:29]} 22. Bf4 {[%clk 00:52:36]} {[%emt 00:00:49]} Bd7
{[%clk 00:36:48]} {[%emt 00:00:56]} 23. b4 {[%clk 00:49:44]} {[%emt 00:03:22]}
Bb6 {[%clk 00:33:41]} {[%emt 00:03:37]} 24. a4 {[%clk 00:50:02]} {[%emt
00:00:11]} Rc8 {[%clk 00:31:41]} {[%emt 00:02:30]} 25. a5 {[%clk 00:50:15]}
{[%emt 00:00:18]} Rxc4 {[%clk 00:30:04]} {[%emt 00:02:07]} 26. axb6 {[%clk
00:48:53]} {[%emt 00:01:50]} axb6 {[%clk 00:28:57]} {[%emt 00:01:39]} 27. Be5
{[%clk 00:47:46]} {[%emt 00:01:37]} Bb5 {[%clk 00:25:35]} {[%emt 00:03:51]} 28.
Kf2 {[%clk 00:47:02]} {[%emt 00:01:14]} Rc6 {[%clk 00:25:04]} {[%emt 00:01:02]}
29. Ke3 {[%clk 00:46:39]} {[%emt 00:00:52]} Re6 {[%clk 00:25:16]} {[%emt
00:00:19]} 30. Bd4 {[%clk 00:45:34]} {[%emt 00:01:34]} f5 {[%clk 00:23:23]}
{[%emt 00:02:23]} 31. Ra8+ {[%clk 00:44:02]} {[%emt 00:02:02]} Kh7 {[%clk
00:21:31]} {[%emt 00:02:22]} 32. Rf8 {[%clk 00:44:07]} {[%emt 00:00:26]} Rg6
{[%clk 00:18:06]} {[%emt 00:03:54]} 33. g3 {[%clk 00:44:01]} {[%emt 00:00:36]}
Bc6 {[%clk 00:15:56]} {[%emt 00:02:41]} 34. Bxb6 {[%clk 00:43:22]} {[%emt
00:01:09]} Rf6 {[%clk 00:15:47]} {[%emt 00:00:38]} 35. Rxf6 {[%clk 00:43:04]}
{[%emt 00:00:47]} gxf6 {[%clk 00:16:07]} {[%emt 00:00:10]} 36. Kf4 {[%clk
00:43:02]} {[%emt 00:00:32]} Kg6 {[%clk 00:16:21]} {[%emt 00:00:16]} 37. h4
{[%clk 00:43:19]} {[%emt 00:00:13]} h5 {[%clk 00:15:15]} {[%emt 00:01:36]} 38.
c4 {[%clk 00:43:00]} {[%emt 00:00:49]} Ba4 {[%clk 00:15:24]} {[%emt 00:00:22]}
39. Bd4 {[%clk 00:41:52]} {[%emt 00:01:37]} Bd1 {[%clk 00:15:16]} {[%emt
00:00:38]} 40. c5 {[%clk 00:41:40]} {[%emt 00:00:42]} Be2 {[%clk 00:13:20]}
{[%emt 00:02:26]} 41. Ke3 {[%clk 00:40:28]} {[%emt 00:01:42]} Bb5 {[%clk
00:12:51]} {[%emt 00:01:00]} 42. Kf4 {[%clk 00:40:32]} {[%emt 00:00:25]} Bd7
{[%clk 00:13:03]} {[%emt 00:00:19]} 43. Ke3 {[%clk 00:38:32]} {[%emt 00:02:29]}
Kf7 {[%clk 00:13:13]} {[%emt 00:00:21]} 44. Kd2 {[%clk 00:37:47]} {[%emt
00:01:15]} f4 {[%clk 00:09:54]} {[%emt 00:03:49]} 45. gxf4 {[%clk 00:37:08]}
{[%emt 00:01:09]} f5 {[%clk 00:09:59]} {[%emt 00:00:26]} 46. Kc3 {[%clk
00:35:17]} {[%emt 00:02:21]} Bb5 {[%clk 00:10:18]} {[%emt 00:00:11]} 47. Be3
{[%clk 00:35:12]} {[%emt 00:00:34]} Kf6 {[%clk 00:09:36]} {[%emt 00:01:12]} 48.
Kd4 {[%clk 00:35:09]} {[%emt 00:00:33]} Ke6 {[%clk 00:09:49]} {[%emt 00:00:17]}
49. Bf2 {[%clk 00:35:19]} {[%emt 00:00:20]} Bc6 {[%clk 00:07:23]} {[%emt
00:02:56]} 50. Kc4 {[%clk 00:32:29]} {[%emt 00:03:21]} Bd5+ {[%clk 00:07:17]}
{[%emt 00:00:36]} 51. Kd4 {[%clk 00:31:27]} {[%emt 00:01:31]} Bb3 {[%clk
00:06:03]} {[%emt 00:01:45]} 52. b5 {[%clk 00:31:09]} {[%emt 00:00:48]} Bd1
{[%clk 00:05:38]} {[%emt 00:00:54]} 53. b6 {[%clk 00:30:27]} {[%emt 00:01:12]}
Bg4 {[%clk 00:04:06]} {[%emt 00:02:02]} 54. c6 {[%clk 00:29:41]} {[%emt
00:01:16]} e3 {[%clk 00:02:52]} {[%emt 00:01:45]} 55. Kxe3 {[%clk 00:29:00]}
{[%emt 00:01:10]} bxc6 {[%clk 00:27:36]} {[%emt 00:05:47]} 56. b7 {[%clk
00:59:12]} {[%emt 00:00:17]} Kd6 {[%clk 00:27:43]} {[%emt 00:00:23]} 57. b8=Q+
{[%clk 00:59:31]} {[%emt 00:00:11]} Kd5 {[%clk 00:28:09]} {[%emt 00:00:04]} 58.
Qe5+ {[%clk 00:59:47]} {[%emt 00:00:14]} Kc4 {[%clk 00:28:30]} {[%emt
00:00:08]} 59. Qd6 {[%clk 00:59:27]} {[%emt 00:00:50]} Kb5 {[%clk 00:28:52]}
{[%emt 00:00:08]} 60. Kd3 {[%clk 00:59:38]} {[%emt 00:00:18]} Bh3 {[%clk
00:28:55]} {[%emt 00:00:28]} 61. Qc5+ {[%clk 00:59:58]} {[%emt 00:00:10]} Ka4
{[%clk 00:29:03]} {[%emt 00:00:21]} 62. Kc3 {[%clk 01:00:05]} {[%emt 00:00:24]}
Bg2 {[%clk 00:28:54]} {[%emt 00:00:38]} 63. Qb4# {[%clk 01:00:20]} {[%emt
00:00:15]} 1-0

[Event "NJSK 2022 Meisjes A&B"]
[Site "Almelo, Netherlands"]
[Date "2022.05.07"]
[Round "7.1"]
[White "De Zoeten, Cato"]
[Black "Cordes, Jule"]
[Result "0-1"]
[TimeControl "90min/40moves + 30min + 30sec/move"]
[WhiteElo "1915"]
[BlackElo "1802"]

1. e4 {[%clk 01:28:32]} {[%emt 00:02:28]} e6 {[%clk 01:30:47]} {[%emt
00:00:14]} 2. d4 {[%clk 01:28:57]} {[%emt 00:00:05]} d5 {[%clk 01:31:08]}
{[%emt 00:00:09]} 3. Nd2 {[%clk 01:29:16]} {[%emt 00:00:10]} Nf6 {[%clk
01:31:19]} {[%emt 00:00:19]} 4. e5 {[%clk 01:29:23]} {[%emt 00:00:23]} Nfd7
{[%clk 01:31:23]} {[%emt 00:00:26]} 5. f4 {[%clk 01:29:29]} {[%emt 00:00:25]}
c5 {[%clk 01:31:25]} {[%emt 00:00:28]} 6. c3 {[%clk 01:29:54]} {[%emt
00:00:04]} Nc6 {[%clk 01:31:23]} {[%emt 00:00:32]} 7. Ndf3 {[%clk 01:28:10]}
{[%emt 00:02:14]} cxd4 {[%clk 01:30:03]} {[%emt 00:01:51]} 8. cxd4 {[%clk
01:26:14]} {[%emt 00:02:25]} Qb6 {[%clk 01:26:05]} {[%emt 00:04:28]} 9. Bd3
{[%clk 01:08:27]} {[%emt 00:18:17]} Nxd4 {[%clk 01:19:55]} {[%emt 00:06:40]} 10.
Nxd4 {[%clk 00:57:04]} {[%emt 00:11:53]} Bb4+ {[%clk 01:12:35]} {[%emt
00:07:51]} 11. Bd2 {[%clk 00:48:06]} {[%emt 00:09:28]} Qxd4 {[%clk 01:08:01]}
{[%emt 00:05:04]} 12. Nf3 {[%clk 00:43:24]} {[%emt 00:05:11]} Qxf4 {[%clk
01:03:29]} {[%emt 00:05:02]} 13. Bxb4 {[%clk 00:37:30]} {[%emt 00:06:24]} Qxb4+
{[%clk 01:03:15]} {[%emt 00:00:44]} 14. Qd2 {[%clk 00:37:44]} {[%emt 00:00:17]}
Qxd2+ {[%clk 00:59:34]} {[%emt 00:04:11]} 15. Kxd2 {[%clk 00:38:04]} {[%emt
00:00:10]} Nc5 {[%clk 00:57:43]} {[%emt 00:02:20]} 16. Bc2 {[%clk 00:37:59]}
{[%emt 00:00:35]} O-O {[%clk 00:55:20]} {[%emt 00:02:53]} 17. Rhf1 {[%clk
00:37:16]} {[%emt 00:01:13]} Bd7 {[%clk 00:47:54]} {[%emt 00:07:57]} 18. Rae1
{[%clk 00:29:53]} {[%emt 00:07:52]} Rac8 {[%clk 00:45:17]} {[%emt 00:03:07]} 19.
Re3 {[%clk 00:29:42]} {[%emt 00:00:41]} f6 {[%clk 00:36:33]} {[%emt 00:09:15]}
20. b4 {[%clk 00:27:36]} {[%emt 00:02:36]} Na6 {[%clk 00:34:44]} {[%emt
00:02:19]} 21. a3 {[%clk 00:27:36]} {[%emt 00:00:29]} Nc7 {[%clk 00:27:56]}
{[%emt 00:07:18]} 22. Rfe1 {[%clk 00:25:52]} {[%emt 00:02:14]} f5 {[%clk
00:26:50]} {[%emt 00:01:37]} 23. Nd4 {[%clk 00:24:05]} {[%emt 00:02:16]} Na8
{[%clk 00:18:59]} {[%emt 00:08:21]} 24. Rh3 {[%clk 00:22:10]} {[%emt 00:02:25]}
g6 {[%clk 00:15:10]} {[%emt 00:04:19]} 25. Bb3 {[%clk 00:19:19]} {[%emt
00:03:20]} Nb6 {[%clk 00:15:09]} {[%emt 00:00:32]} 26. a4 {[%clk 00:18:07]}
{[%emt 00:01:42]} Rc7 {[%clk 00:13:19]} {[%emt 00:02:21]} 27. Nb5 {[%clk
00:18:17]} {[%emt 00:00:19]} Bxb5 {[%clk 00:13:06]} {[%emt 00:00:43]} 28. axb5
{[%clk 00:18:38]} {[%emt 00:00:10]} Nc4+ {[%clk 00:11:25]} {[%emt 00:02:10]} 29.
Bxc4 {[%clk 00:17:42]} {[%emt 00:01:25]} Rxc4 {[%clk 00:09:41]} {[%emt
00:02:15]} 30. Rb3 {[%clk 00:17:11]} {[%emt 00:01:01]} b6 {[%clk 00:08:38]}
{[%emt 00:01:34]} 31. Ra1 {[%clk 00:17:20]} {[%emt 00:00:20]} Rf7 {[%clk
00:08:59]} {[%emt 00:00:09]} 32. Rba3 {[%clk 00:17:22]} {[%emt 00:00:28]} Rxb4
{[%clk 00:08:16]} {[%emt 00:01:13]} 33. Rxa7 {[%clk 00:17:43]} {[%emt
00:00:09]} Rxb5 {[%clk 00:07:38]} {[%emt 00:01:09]} 34. Rxf7 {[%clk 00:17:22]}
{[%emt 00:00:51]} Kxf7 {[%clk 00:08:00]} {[%emt 00:00:07]} 35. Ra7+ {[%clk
00:17:49]} {[%emt 00:00:04]} Ke8 {[%clk 00:07:14]} {[%emt 00:01:15]} 36. Ra8+
{[%clk 00:17:16]} {[%emt 00:01:03]} Ke7 {[%clk 00:06:23]} {[%emt 00:01:21]} 37.
Ra7+ {[%clk 00:17:41]} {[%emt 00:00:06]} Ke8 {[%clk 00:05:38]} {[%emt
00:01:15]} 38. Ra8+ {[%clk 00:18:06]} {[%emt 00:00:05]} Kd7 {[%clk 00:05:24]}
{[%emt 00:00:43]} 39. Ra7+ {[%clk 00:18:25]} {[%emt 00:00:10]} Kd8 {[%clk
00:03:51]} {[%emt 00:02:04]} 40. Ra8+ {[%clk 00:18:43]} {[%emt 00:00:13]} Kc7
{[%clk 00:01:13]} {[%emt 00:03:08]} 41. Ra7+ {[%clk 00:19:06]} {[%emt
00:00:06]} Kc6 {[%clk 00:28:50]} {[%emt 00:02:53]} 42. Re7 {[%clk 00:48:53]}
{[%emt 00:00:43]} d4 {[%clk 00:28:25]} {[%emt 00:00:55]} 43. Rxe6+ {[%clk
00:49:11]} {[%emt 00:00:11]} Kd5 {[%clk 00:21:45]} {[%emt 00:07:11]} 44. Re8
{[%clk 00:47:50]} {[%emt 00:01:51]} Rb2+ {[%clk 00:21:40]} {[%emt 00:00:35]} 45.
Kd3 {[%clk 00:47:51]} {[%emt 00:00:29]} Rb3+ {[%clk 00:19:56]} {[%emt
00:02:15]} 46. Kd2 {[%clk 00:47:43]} {[%emt 00:00:38]} Re3 {[%clk 00:17:37]}
{[%emt 00:02:48]} 0-1

[Event "NJSK 2022 Meisjes A&B"]
[Site "Almelo, Netherlands"]
[Date "2022.05.07"]
[Round "7.2"]
[White "Martinez, Sara"]
[Black "Verheij, Dana"]
[Result "1/2-1/2"]
[TimeControl "90min/40moves + 30min + 30sec/move"]
[WhiteElo "1651"]
[BlackElo "1828"]

1. e4 {[%clk 01:28:25]} {[%emt 00:02:34]} c5 {[%clk 01:30:53]} {[%emt
00:00:08]} 2. Nf3 {[%clk 01:28:48]} {[%emt 00:00:06]} d6 {[%clk 01:31:16]}
{[%emt 00:00:07]} 3. d4 {[%clk 01:29:15]} {[%emt 00:00:03]} cxd4 {[%clk
01:31:44]} {[%emt 00:00:02]} 4. Nxd4 {[%clk 01:29:40]} {[%emt 00:00:05]} Nf6
{[%clk 01:32:06]} {[%emt 00:00:09]} 5. Nc3 {[%clk 01:30:05]} {[%emt 00:00:04]}
a6 {[%clk 01:32:30]} {[%emt 00:00:06]} 6. f3 {[%clk 01:30:27]} {[%emt
00:00:08]} e5 {[%clk 01:32:41]} {[%emt 00:00:19]} 7. Nb3 {[%clk 01:30:40]}
{[%emt 00:00:18]} Be6 {[%clk 01:32:01]} {[%emt 00:01:10]} 8. Be3 {[%clk
01:28:56]} {[%emt 00:02:14]} Be7 {[%clk 01:30:57]} {[%emt 00:01:34]} 9. Qd2
{[%clk 01:28:10]} {[%emt 00:01:15]} h5 {[%clk 01:29:52]} {[%emt 00:01:35]} 10.
Bd3 {[%clk 01:22:03]} {[%emt 00:06:38]} Nbd7 {[%clk 01:26:02]} {[%emt
00:04:20]} 11. O-O {[%clk 01:20:45]} {[%emt 00:01:48]} b5 {[%clk 01:22:14]}
{[%emt 00:04:17]} 12. Qf2 {[%clk 01:02:50]} {[%emt 00:18:25]} O-O {[%clk
01:10:23]} {[%emt 00:12:21]} 13. Rad1 {[%clk 00:58:52]} {[%emt 00:04:28]} Rb8
{[%clk 01:04:40]} {[%emt 00:06:13]} 14. Ne2 {[%clk 00:47:01]} {[%emt 00:12:22]}
a5 {[%clk 00:56:20]} {[%emt 00:08:50]} 15. Ng3 {[%clk 00:41:20]} {[%emt
00:06:09]} a4 {[%clk 00:55:02]} {[%emt 00:01:50]} 16. Nc1 {[%clk 00:41:34]}
{[%emt 00:00:16]} d5 {[%clk 00:49:12]} {[%emt 00:06:20]} 17. Kh1 {[%clk
00:35:37]} {[%emt 00:06:26]} h4 {[%clk 00:35:21]} {[%emt 00:14:22]} 18. Nf5
{[%clk 00:33:12]} {[%emt 00:02:55]} Bxf5 {[%clk 00:35:41]} {[%emt 00:00:09]} 19.
exf5 {[%clk 00:33:38]} {[%emt 00:00:04]} Nh5 {[%clk 00:32:57]} {[%emt
00:03:14]} 20. Ne2 {[%clk 00:30:42]} {[%emt 00:03:26]} Qc7 {[%clk 00:26:25]}
{[%emt 00:07:01]} 21. c3 {[%clk 00:23:59]} {[%emt 00:07:15]} Rfe8 {[%clk
00:21:53]} {[%emt 00:05:02]} 22. f4 {[%clk 00:22:26]} {[%emt 00:02:02]} Qc6
{[%clk 00:14:33]} {[%emt 00:07:51]} 23. fxe5 {[%clk 00:21:29]} {[%emt
00:01:27]} Nxe5 {[%clk 00:14:44]} {[%emt 00:00:19]} 24. Nd4 {[%clk 00:21:13]}
{[%emt 00:00:46]} Nxd3 {[%clk 00:09:02]} {[%emt 00:06:11]} 25. Nxc6 {[%clk
00:20:39]} {[%emt 00:01:05]} Nxf2+ {[%clk 00:09:27]} {[%emt 00:00:05]} 26. Bxf2
{[%clk 00:21:02]} {[%emt 00:00:07]} Rbc8 {[%clk 00:08:15]} {[%emt 00:01:40]} 27.
Nxe7+ {[%clk 00:21:00]} {[%emt 00:00:34]} Rxe7 {[%clk 00:08:39]} {[%emt
00:00:07]} 28. Rxd5 {[%clk 00:21:16]} {[%emt 00:00:13]} Re2 {[%clk 00:07:45]}
{[%emt 00:01:23]} 29. Rxb5 {[%clk 00:15:23]} {[%emt 00:06:24]} Rd8 {[%clk
00:07:30]} {[%emt 00:00:44]} 30. Bd4 {[%clk 00:13:28]} {[%emt 00:02:26]} a3
{[%clk 00:03:06]} {[%emt 00:04:53]} 31. bxa3 {[%clk 00:10:05]} {[%emt
00:03:53]} Rxa2 {[%clk 00:03:16]} {[%emt 00:00:20]} 32. f6 {[%clk 00:08:31]}
{[%emt 00:02:05]} Nxf6 {[%clk 00:03:09]} {[%emt 00:00:37]} 33. Bxf6 {[%clk
00:08:46]} {[%emt 00:00:16]} gxf6 {[%clk 00:03:35]} {[%emt 00:00:03]} 34. Rb4
{[%clk 00:07:48]} {[%emt 00:01:29]} h3 {[%clk 00:00:45]} {[%emt 00:03:20]} 35.
Rg4+ {[%clk 00:05:36]} {[%emt 00:02:42]} Kf8 {[%clk 00:01:07]} {[%emt
00:00:07]} 36. gxh3 {[%clk 00:03:35]} {[%emt 00:02:31]} 1/2-1/2

[Event "NJSK 2022 Meisjes A&B"]
[Site "Almelo, Netherlands"]
[Date "2022.05.07"]
[Round "7.3"]
[White "Den Heijer, Rolinde"]
[Black "Bogouslavskii, Veronique"]
[Result "1/2-1/2"]
[TimeControl "90min/40moves + 30min + 30sec/move"]
[WhiteElo "1754"]
[BlackElo "1618"]

1. e4 {[%clk 01:30:18]} {[%emt 00:00:41]} e5 {[%clk 01:30:53]} {[%emt
00:00:08]} 2. Nf3 {[%clk 01:30:33]} {[%emt 00:00:15]} d5 {[%clk 01:31:09]}
{[%emt 00:00:14]} 3. Nxe5 {[%clk 01:27:40]} {[%emt 00:03:23]} Bd6 {[%clk
01:31:19]} {[%emt 00:00:20]} 4. Ng4 {[%clk 01:25:45]} {[%emt 00:02:24]} dxe4
{[%clk 01:24:38]} {[%emt 00:07:12]} 5. d3 {[%clk 01:20:56]} {[%emt 00:05:19]}
exd3 {[%clk 01:22:19]} {[%emt 00:02:49]} 6. Bxd3 {[%clk 01:19:51]} {[%emt
00:01:35]} Nc6 {[%clk 01:18:34]} {[%emt 00:04:15]} 7. a3 {[%clk 01:15:09]}
{[%emt 00:05:12]} Qe7+ {[%clk 01:13:21]} {[%emt 00:05:43]} 8. Ne3 {[%clk
01:14:16]} {[%emt 00:01:22]} Be6 {[%clk 01:10:47]} {[%emt 00:03:05]} 9. Bb5
{[%clk 01:04:31]} {[%emt 00:10:14]} O-O-O {[%clk 01:08:32]} {[%emt 00:02:46]}
10. Nd2 {[%clk 01:00:37]} {[%emt 00:04:25]} Nd4 {[%clk 01:01:59]} {[%emt
00:07:02]} 11. Bd3 {[%clk 00:59:22]} {[%emt 00:01:45]} h5 {[%clk 00:47:49]}
{[%emt 00:14:39]} 12. h3 {[%clk 00:52:21]} {[%emt 00:07:31]} f5 {[%clk
00:42:52]} {[%emt 00:05:27]} 13. c3 {[%clk 00:45:18]} {[%emt 00:07:34]} Nc6
{[%clk 00:37:05]} {[%emt 00:06:16]} 14. Qe2 {[%clk 00:42:50]} {[%emt 00:02:58]}
g6 {[%clk 00:33:49]} {[%emt 00:03:47]} 15. Ndc4 {[%clk 00:36:55]} {[%emt
00:06:25]} Nf6 {[%clk 00:26:34]} {[%emt 00:07:44]} 16. Bd2 {[%clk 00:28:37]}
{[%emt 00:08:49]} Rhe8 {[%clk 00:24:17]} {[%emt 00:02:47]} 17. g3 {[%clk
00:19:09]} {[%emt 00:09:58]} Qf8 {[%clk 00:18:28]} {[%emt 00:06:18]} 18. O-O-O
{[%emt 00:05:19]} Ne5 {[%clk 00:15:32]} 19. Nxd6+ {[%clk 00:15:42]} {[%emt
00:02:33]} Qxd6 {[%clk 00:15:36]} {[%emt 00:00:26]} 20. Bc2 {[%clk 00:15:00]}
{[%emt 00:01:12]} Qc6 {[%clk 00:14:19]} {[%emt 00:01:47]} 21. Qf1 {[%clk
00:12:40]} {[%emt 00:02:50]} Nf3 {[%clk 00:11:43]} {[%emt 00:03:07]} 22. Bd3
{[%clk 00:10:40]} {[%emt 00:02:30]} Bb3 {[%clk 00:11:19]} {[%emt 00:00:54]} 23.
Bc2 {[%clk 00:10:23]} {[%emt 00:00:46]} Nxd2 {[%clk 00:10:43]} {[%emt
00:01:06]} 24. Rxd2 {[%clk 00:10:25]} {[%emt 00:00:29]} Rxd2 {[%clk 00:10:39]}
{[%emt 00:00:34]} 25. Kxd2 {[%clk 00:10:49]} {[%emt 00:00:05]} Bxc2 {[%clk
00:10:37]} {[%emt 00:00:32]} 26. Nxc2 {[%clk 00:10:49]} {[%emt 00:00:30]} Qd5+
{[%clk 00:10:07]} {[%emt 00:01:00]} 27. Kc1 {[%clk 00:11:07]} {[%emt 00:00:13]}
Ne4 {[%clk 00:10:20]} {[%emt 00:00:17]} 28. Rh2 {[%clk 00:10:08]} {[%emt
00:01:28]} Qd2+ {[%clk 00:09:47]} {[%emt 00:01:03]} 29. Kb1 {[%clk 00:10:32]}
{[%emt 00:00:06]} Nxg3 {[%clk 00:06:14]} {[%emt 00:04:04]} 30. Qc1 {[%clk
00:09:56]} {[%emt 00:01:05]} Qxc1+ {[%clk 00:05:52]} {[%emt 00:00:53]} 31. Kxc1
{[%clk 00:10:20]} {[%emt 00:00:05]} Ne2+ {[%clk 00:05:48]} {[%emt 00:00:34]} 32.
Kd2 {[%clk 00:10:24]} {[%emt 00:00:27]} Nf4 {[%clk 00:05:44]} {[%emt 00:00:33]}
33. Ne3 {[%clk 00:10:11]} {[%emt 00:00:43]} Rd8+ {[%clk 00:05:31]} {[%emt
00:00:44]} 34. Kc2 {[%clk 00:10:16]} {[%emt 00:00:25]} c6 {[%clk 00:05:36]}
{[%emt 00:00:25]} 35. h4 {[%clk 00:09:55]} {[%emt 00:00:51]} Rd6 {[%clk
00:03:40]} {[%emt 00:02:25]} 36. Rh1 {[%clk 00:09:29]} {[%emt 00:00:56]} Kc7
{[%clk 00:03:43]} {[%emt 00:00:26]} 37. Rg1 {[%clk 00:09:09]} {[%emt 00:00:51]}
Nd3 {[%clk 00:02:35]} {[%emt 00:01:38]} 38. Nc4 {[%clk 00:08:33]} {[%emt
00:01:07]} Rd7 {[%clk 00:01:52]} {[%emt 00:01:14]} 39. Rxg6 {[%clk 00:07:23]}
{[%emt 00:01:39]} Nxf2 {[%clk 00:01:47]} {[%emt 00:00:35]} 40. Rg5 {[%clk
00:04:08]} {[%emt 00:03:45]} Rh7 {[%clk 00:00:57]} {[%emt 00:01:19]} 41. Rxf5
{[%clk 00:03:38]} {[%emt 00:01:01]} Ng4 {[%clk 00:00:48]} {[%emt 00:00:39]} 42.
Kb3 {[%clk 00:01:56]} {[%emt 00:02:12]} b6 {[%clk 00:22:28]} {[%emt 00:08:50]}
43. Ne5 {[%clk 00:23:42]} {[%emt 00:08:43]} 1/2-1/2